fUST/lending_fUST_20250819
["ID","MTS","AMOUNT","RATE_DAILY","PERIOD"]
[380175401,1755593438971,-548.67,0.00019451,2]
[380175402,1755593438979,-548.67,0.00019451,2]
[380175403,1755593438988,-548.67,0.00019451,2]
[380175404,1755593438997,-463.83,0.00019451,2]
[380175405,1755593439006,-480.0,0.00019452,2]
[380175406,1755593439015,-480.0,0.00019452,2]
[380175407,1755593439024,-448.67125177,0.00019452,2]
[380175408,1755593439033,-480.0,0.00019452,2]
[380175409,1755593439042,-480.0,0.00019452,2]
[380175410,1755593439051,-480.0,0.00019452,2]
[380175411,1755593439059,-480.0,0.00019452,2]
[380175412,1755593439068,-332.86379426,0.00019452,2]
[380175413,1755593439077,-480.0,0.00019452,2]
[380175414,1755593439086,-443.22346334,0.00019452,2]
[380175415,1755593439095,-489.00476417,0.00019452,2]
[380175416,1755593439103,-488.81640553,0.00019452,2]
[380175417,1755593439112,-537.82993603,0.00019452,2]
[380175418,1755593439122,-480.0,0.00019452,2]
[380175419,1755593439131,-480.0,0.00019452,2]
[380175420,1755593439140,-708.1,0.00019452,2]
[380175421,1755593439150,-480.0,0.00019452,2]
[380175422,1755593439159,-480.0,0.00019452,2]
[380175423,1755593439169,-480.0,0.00019452,2]
[380175424,1755593439178,-480.0,0.00019452,2]
[380175425,1755593439188,-480.0,0.00019452,2]
[380175426,1755593439197,-480.0,0.00019452,2]
[380175427,1755593439207,-354.79452101,0.00019452,2]
[380175428,1755593439216,-400.0,0.00019452,2]
[380175429,1755593439226,-480.0,0.00019452,2]
[380175430,1755593439235,-480.0,0.00019452,2]
[380175431,1755593439244,-480.0,0.00019452,2]
[380175432,1755593439255,-480.0,0.00019452,2]
[380175433,1755593439264,-480.0,0.00019452,2]
[380175434,1755593439274,-747.5,0.00019452,2]
[380175435,1755593439283,-480.0,0.00019452,2]
[380175436,1755593439292,-480.0,0.00019452,2]
[380175437,1755593439302,-1342.37,0.00019452,2]
[380175438,1755593439311,-695.03,0.00019452,2]
[380175439,1755593439320,-480.0,0.00019452,2]
[380175440,1755593439329,-480.0,0.00019452,2]
[380175441,1755593439338,-480.0,0.00019452,2]
[380175442,1755593439348,-480.0,0.00019452,2]
[380175443,1755593439357,-510.91,0.00019452,2]
[380175444,1755593439367,-480.0,0.00019452,2]
[380175445,1755593439376,-480.0,0.00019452,2]
[380175446,1755593439385,-480.0,0.00019452,2]
[380175447,1755593439395,-480.0,0.00019452,2]
[380175448,1755593439493,-480.0,0.00019452,2]
[380175449,1755593439504,-480.0,0.00019452,2]
[380175450,1755593439514,-480.0,0.00019452,2]
[380175451,1755593439524,-480.0,0.00019452,2]
[380175452,1755593439537,-480.0,0.00019452,2]
[380175453,1755593439546,-480.0,0.00019452,2]
[380175454,1755593439556,-480.0,0.00019452,2]
[380175455,1755593439566,-484.59701226,0.00019452,2]
[380175456,1755593439576,-480.0,0.00019452,2]
[380175457,1755593439585,-480.0,0.00019452,2]
[380175458,1755593439594,-480.0,0.00019452,2]
[380175459,1755593439605,-480.0,0.00019452,2]
[380175460,1755593439615,-1004.1,0.00019452,2]
[380175461,1755593439625,-480.0,0.00019452,2]
[380175462,1755593439634,-484.95322316,0.00019452,2]
[380175463,1755593439643,-480.0,0.00019452,2]
[380175464,1755593439653,-480.0,0.00019452,2]
[380175465,1755593439662,-480.0,0.00019452,2]
[380175466,1755593439671,-480.0,0.00019452,2]
[380175467,1755593439681,-514.28,0.00019452,2]
[380175468,1755593439690,-480.0,0.00019452,2]
[380175469,1755593439700,-480.0,0.00019452,2]
[380175470,1755593439709,-849.3,0.00019452,2]
[380175471,1755593439719,-480.0,0.00019452,2]
[380175472,1755593439729,-543.12,0.00019452,2]
[380175473,1755593439739,-480.0,0.00019452,2]
[380175474,1755593439749,-480.0,0.00019452,2]
[380175475,1755593439760,-480.0,0.00019452,2]
[380175476,1755593439770,-463.90857742,0.00019452,2]
[380175477,1755593439779,-480.0,0.00019452,2]
[380175478,1755593439789,-480.0,0.00019452,2]
[380175479,1755593439799,-480.0,0.00019452,2]
[380175480,1755593439808,-480.0,0.00019452,2]
[380175482,1755593439819,-480.0,0.00019452,2]
[380175484,1755593439828,-480.0,0.00019452,2]
[380175485,1755593439837,-480.0,0.00019452,2]
[380175486,1755593439847,-386.80529356,0.00019452,2]
[380175487,1755593439856,-461.05622364,0.00019452,2]
[380175488,1755593439865,-480.12399451,0.00019452,2]
[380175490,1755593439875,-557.31,0.00019452,2]
[380175491,1755593439884,-480.0,0.00019452,2]
[380175492,1755593439893,-311.04510732,0.00019452,2]
[380175493,1755593439903,-696.53,0.00019452,2]
[380175494,1755593439913,-2007.54,0.00019452,2]
[380175496,1755593439923,-480.0,0.00019452,2]
[380175497,1755593439933,-3410.87,0.00019452,2]
[380175499,1755593439943,-480.0,0.00019452,2]
[380175501,1755593439952,-480.0,0.00019452,2]
[380175503,1755593439962,-480.0,0.00019452,2]
[380175505,1755593439972,-480.0,0.00019452,2]
[380175506,1755593439981,-480.0,0.00019452,2]
[380175507,1755593439991,-483.85675554,0.00019452,2]
[380175508,1755593440001,-480.0,0.00019452,2]
[380175509,1755593440011,-480.0,0.00019452,2]
[380175510,1755593440020,-508.95192112,0.00019452,2]
[380175511,1755593440029,-480.0,0.00019452,2]
[380175512,1755593440038,-1270.09,0.00019452,2]
[380175513,1755593440047,-480.0,0.00019452,2]
[380175514,1755593440057,-480.0,0.00019452,2]
[380175515,1755593440068,-822.37,0.00019452,2]
[380175516,1755593440077,-460.0,0.00019452,2]
[380175517,1755593440086,-480.0,0.00019452,2]
[380175518,1755593440096,-1629.67,0.00019452,2]
[380175519,1755593440106,-480.0,0.00019452,2]
[380175520,1755593440115,-480.0,0.00019452,2]
[380175521,1755593440125,-480.0,0.00019452,2]
[380175522,1755593440135,-423.47,0.00019452,2]
[380175523,1755593440145,-480.0,0.00019452,2]
[380175524,1755593440156,-1246.1,0.00019452,2]
[380175525,1755593440167,-480.0,0.00019452,2]
[380175526,1755593440178,-480.0,0.00019452,2]
[380175527,1755593440187,-813.04,0.00019452,2]
[380175528,1755593440197,-647.44,0.00019452,2]
[380175529,1755593440207,-480.0,0.00019452,2]
[380175530,1755593440218,-480.0,0.00019452,2]
[380175531,1755593440227,-480.0,0.00019452,2]
[380175532,1755593440237,-480.0,0.00019452,2]
[380175533,1755593440247,-480.0,0.00019452,2]
[380175534,1755593440256,-480.0,0.00019452,2]
[380175535,1755593440265,-480.0,0.00019452,2]
[380175536,1755593440275,-480.0,0.00019452,2]
[380175537,1755593440284,-480.0,0.00019452,2]
[380175538,1755593440294,-576.17,0.00019452,2]
[380175539,1755593440303,-1057.36,0.00019452,2]
[380175540,1755593440314,-480.0,0.00019452,2]
[380175541,1755593440324,-480.0,0.00019452,2]
[380175542,1755593440333,-480.0,0.00019452,2]
[380175543,1755593440343,-480.0,0.00019452,2]
[380175544,1755593440352,-526.96,0.00019452,2]
[380175545,1755593440361,-480.0,0.00019452,2]
[380175546,1755593440371,-480.0,0.00019452,2]
[380175547,1755593440380,-480.0,0.00019452,2]
[380175548,1755593440389,-480.0,0.00019452,2]
[380175549,1755593440398,-480.0,0.00019452,2]
[380175550,1755593440408,-480.0,0.00019452,2]
[380175551,1755593440418,-480.0,0.00019452,2]
[380175552,1755593440427,-480.0,0.00019452,2]
[380175553,1755593440436,-480.0,0.00019452,2]
[380175554,1755593440446,-480.0,0.00019452,2]
[380175555,1755593440455,-480.0,0.00019452,2]
[380175556,1755593440463,-786.22,0.00019452,2]
[380175557,1755593440473,-480.0,0.00019452,2]
[380175558,1755593440481,-480.0,0.00019452,2]
[380175559,1755593440490,-333.93388308,0.00019452,2]
[380175560,1755593440499,-480.0,0.00019452,2]
[380175561,1755593440507,-511.37,0.00019452,2]
[380175562,1755593440516,-480.0,0.00019452,2]
[380175563,1755593440526,-480.0,0.00019452,2]
[380175564,1755593440539,-480.0,0.00019452,2]
[380175565,1755593440548,-480.0,0.00019452,2]
[380175566,1755593440557,-480.0,0.00019452,2]
[380175567,1755593440568,-480.0,0.00019452,2]
[380175568,1755593440578,-480.0,0.00019452,2]
[380175569,1755593440587,-460.0,0.00019452,2]
[380175570,1755593440595,-480.0,0.00019452,2]
[380175571,1755593440605,-480.0,0.00019452,2]
[380175572,1755593440614,-786.05,0.00019452,2]
[380175573,1755593440623,-480.0,0.00019452,2]
[380175574,1755593440631,-6924.41,0.00019452,2]
[380175575,1755593440640,-2051.21,0.00019452,2]
[380175576,1755593440649,-303.10018812,0.00019452,2]
[380175577,1755593440658,-6698.69,0.00019452,2]
[380175578,1755593440667,-2277.25,0.00019452,2]
[380175579,1755593440677,-480.0,0.00019452,2]
[380175580,1755593440686,-480.0,0.00019452,2]
[380175581,1755593440695,-2311.94,0.00019452,2]
[380175582,1755593440704,-480.0,0.00019452,2]
[380175583,1755593440713,-480.0,0.00019452,2]
[380175584,1755593440722,-480.0,0.00019452,2]
[380175585,1755593440731,-480.0,0.00019452,2]
[380175586,1755593440740,-482.71,0.00019452,2]
[380175587,1755593440749,-480.0,0.00019452,2]
[380175588,1755593440758,-480.0,0.00019452,2]
[380175589,1755593440767,-480.0,0.00019452,2]
[380175590,1755593440776,-938.96,0.00019452,2]
[380175591,1755593440785,-480.0,0.00019452,2]
[380175592,1755593440794,-480.0,0.00019452,2]
[380175593,1755593440803,-460.0,0.00019452,2]
[380175594,1755593440812,-480.0,0.00019452,2]
[380175595,1755593440822,-480.0,0.00019452,2]
[380175596,1755593440831,-239.38561285,0.00019452,2]
[380175597,1755593440839,-480.0,0.00019452,2]
[380175598,1755593440848,-480.0,0.00019452,2]
[380175599,1755593440857,-1621.4,0.00019452,2]
[380175600,1755593440866,-480.0,0.00019452,2]
[380175601,1755593440875,-480.0,0.00019452,2]
[380175602,1755593440884,-241.562406,0.00019452,2]
[380175603,1755593440893,-480.0,0.00019452,2]
[380175604,1755593440901,-151.0,0.00019452,2]
[380175605,1755593440910,-618.388685,0.00019452,2]
[380175606,1755593440919,-241.562406,0.00019452,2]
[380175607,1755593440928,-480.0,0.00019452,2]
[380175608,1755593440937,-151.0,0.00019452,2]
[380175609,1755593440946,-618.388685,0.00019452,2]
[380175610,1755593440955,-3242.66,0.00019452,2]
[380175611,1755593440963,-1334.4,0.00019452,2]
[380175612,1755593440972,-480.0,0.00019452,2]
[380175613,1755593440981,-480.0,0.00019452,2]
[380175614,1755593440990,-266.1040576,0.00019452,2]
[380175615,1755593440998,-151.0,0.00019452,2]
[380175616,1755593441008,-1509.07,0.00019452,2]
[380175617,1755593441017,-674.88,0.00019452,2]
[380175618,1755593441026,-151.0,0.00019452,2]
[380175619,1755593441034,-480.0,0.00019452,2]
[380175620,1755593441043,-480.0,0.00019452,2]
[380175621,1755593441051,-480.0,0.00019452,2]
[380175622,1755593441060,-480.0,0.00019452,2]
[380175623,1755593441070,-151.0,0.00019452,2]
[380175624,1755593441080,-480.0,0.00019452,2]
[380175625,1755593441090,-480.0,0.00019452,2]
[380175626,1755593441099,-769.92,0.00019452,2]
[380175627,1755593441108,-480.0,0.00019452,2]
[380175628,1755593441117,-480.0,0.00019452,2]
[380175629,1755593441126,-480.0,0.00019452,2]
[380175630,1755593441135,-980.92,0.00019452,2]
[380175631,1755593441144,-344.63505253,0.00019452,2]
[380175632,1755593441153,-480.0,0.00019452,2]
[380175633,1755593441162,-480.0,0.00019452,2]
[380175634,1755593441171,-832.49,0.00019452,2]
[380175635,1755593441180,-1174.48,0.00019452,2]
[380175636,1755593441189,-480.0,0.00019452,2]
[380175637,1755593441198,-1416.01,0.00019452,2]
[380175638,1755593441207,-480.0,0.00019452,2]
[380175639,1755593441296,-480.0,0.00019452,2]
[380175640,1755593441306,-480.0,0.00019452,2]
[380175641,1755593441316,-480.0,0.00019452,2]
[380175642,1755593441325,-480.0,0.00019452,2]
[380175643,1755593441335,-480.0,0.00019452,2]
[380175644,1755593441345,-480.0,0.00019452,2]
[380175645,1755593441355,-151.0,0.00019452,2]
[380175646,1755593441364,-480.0,0.00019452,2]
[380175647,1755593441374,-874.65,0.00019452,2]
[380175648,1755593441384,-222.690205,0.00019452,2]
[380175649,1755593441393,-702.48,0.00019452,2]
[380175650,1755593441403,-480.0,0.00019452,2]
[380175651,1755593441413,-480.0,0.00019452,2]
[380175652,1755593441423,-480.0,0.00019452,2]
[380175653,1755593441432,-480.0,0.00019452,2]
[380175654,1755593441441,-2990.97,0.00019452,2]
[380175655,1755593441452,-731.14,0.00019452,2]
[380175656,1755593441461,-480.0,0.00019452,2]
[380175657,1755593441470,-1492.79,0.00019452,2]
[380175658,1755593441480,-480.0,0.00019452,2]
[380175659,1755593441489,-480.0,0.00019452,2]
[380175660,1755593441498,-480.0,0.00019452,2]
[380175661,1755593441507,-151.0,0.00019452,2]
[380175662,1755593441517,-881.07,0.00019452,2]
[380175663,1755593441526,-480.0,0.00019452,2]
[380175664,1755593441540,-238.741404,0.00019452,2]
[380175665,1755593441549,-480.0,0.00019452,2]
[380175666,1755593441558,-480.0,0.00019452,2]
[380175667,1755593441569,-710.19,0.00019452,2]
[380175668,1755593441579,-182.42586438,0.00019452,2]
[380175669,1755593441589,-764.07,0.00019452,2]
[380175670,1755593441598,-480.0,0.00019452,2]
[380175671,1755593441608,-480.0,0.00019452,2]
[380175672,1755593441619,-480.0,0.00019452,2]
[380175673,1755593441629,-480.0,0.00019452,2]
[380175674,1755593441640,-238.741404,0.00019452,2]
[380175675,1755593441649,-480.0,0.00019452,2]
[380175676,1755593441659,-152.364018,0.00019452,2]
[380175677,1755593441668,-261.28086389,0.00019452,2]
[380175678,1755593441678,-500.0,0.00019452,2]
[380175679,1755593441687,-500.0,0.00019473,2]
[380175680,1755593441697,-501.66438607,0.00019473,2]
[380175681,1755593441706,-500.0,0.00019473,2]
[380175682,1755593441716,-151.0,0.00019473,2]
[380175683,1755593441725,-152.573358,0.00019473,2]
[380175684,1755593441734,-151.0,0.00019473,2]
[380175685,1755593441742,-151.0,0.00019473,2]
[380175686,1755593441749,-179.888096,0.00019473,2]
[380175687,1755593441757,-153.0,0.000195,2]
[380175688,1755593441765,-153.0,0.000195,2]
[380175689,1755593441773,-153.0,0.000195,2]
[380175690,1755593441781,-548.67,0.00019539,2]
[380175691,1755593441789,-200.0,0.00019561,20]
[380175692,1755593441797,-200.0,0.00019561,20]
[380175693,1755593441805,-200.0,0.00019561,20]
[380175694,1755593441813,-200.0,0.00019561,20]
[380175695,1755593441822,-200.0,0.00019561,20]
[380175696,1755593441830,-200.0,0.00019561,20]
[380175697,1755593441837,-200.0,0.00019561,20]
[380175698,1755593441846,-200.0,0.00019561,20]
[380175699,1755593441855,-200.0,0.00019561,20]
[380175700,1755593441864,-200.0,0.00019561,20]
[380175701,1755593441873,-200.0,0.00019561,20]
[380175702,1755593441882,-200.0,0.00019561,20]
[380175703,1755593441891,-200.0,0.00019561,20]
[380175704,1755593441899,-200.0,0.00019561,20]
[380175705,1755593441909,-200.0,0.00019561,20]
[380175706,1755593441918,-200.0,0.00019561,20]
[380175707,1755593441927,-200.0,0.00019561,20]
[380175708,1755593441936,-200.0,0.00019561,20]
[380175709,1755593441945,-200.0,0.00019561,20]
[380175710,1755593441953,-200.0,0.00019561,20]
[380175711,1755593441962,-600.0,0.00019561,20]
[380175712,1755593441971,-306.7921069,0.000196,2]
[380175713,1755593441980,-1525.0,0.00019624,2]
[380175714,1755593441989,-153.0,0.00019671,2]
[380175715,1755593441998,-153.0,0.00019671,2]
[380175716,1755593442007,-272.3,0.00019691,2]
[380175717,1755593442016,-1004.24025041,0.00019721,2]
[380175718,1755593442024,-1000.0,0.00019721,2]
[380175719,1755593442033,-1000.0,0.00019721,2]
[380175720,1755593442043,-548.67,0.00019725,2]
[380175721,1755593442053,-548.67,0.00019725,2]
[380175722,1755593442062,-548.67,0.00019725,2]
[380175723,1755593442071,-548.67,0.00019725,2]
[380175724,1755593442081,-480.0,0.00019726,2]
[380175725,1755593442089,-221.7848094,0.00019726,2]
[380175726,1755593442100,-480.0,0.00019726,2]
[380175727,1755593442109,-480.0,0.00019726,2]
[380175728,1755593442118,-480.0,0.00019726,2]
[380175729,1755593442128,-400.66,0.00019726,2]
[380175730,1755593442137,-480.0,0.00019726,2]
[380175731,1755593442146,-708.1,0.00019726,2]
[380175732,1755593442155,-480.0,0.00019726,2]
[380175733,1755593442166,-480.0,0.00019726,2]
[380175734,1755593442175,-480.0,0.00019726,2]
[380175735,1755593442184,-480.0,0.00019726,2]
[380175736,1755593442193,-480.0,0.00019726,2]
[380175737,1755593442204,-222.964643,0.00019726,2]
[380175738,1755593442213,-480.0,0.00019726,2]
[380175739,1755593442223,-480.0,0.00019726,2]
[380175740,1755593442232,-480.0,0.00019726,2]
[380175741,1755593442242,-747.5,0.00019726,2]
[380175742,1755593442251,-480.0,0.00019726,2]
[380175743,1755593442260,-480.0,0.00019726,2]
[380175744,1755593442269,-1342.37,0.00019726,2]
[380175745,1755593442279,-695.03,0.00019726,2]
[380175746,1755593442288,-484.03177154,0.00019726,2]
[380175747,1755593442297,-480.0,0.00019726,2]
[380175748,1755593442306,-480.0,0.00019726,2]
[380175749,1755593442316,-480.0,0.00019726,2]
[380175750,1755593442325,-510.91,0.00019726,2]
[380175751,1755593442335,-480.0,0.00019726,2]
[380175752,1755593442344,-480.0,0.00019726,2]
[380175753,1755593442353,-480.0,0.00019726,2]
[380175754,1755593442362,-480.0,0.00019726,2]
[380175755,1755593442371,-480.0,0.00019726,2]
[380175756,1755593442381,-480.0,0.00019726,2]
[380175757,1755593442390,-480.0,0.00019726,2]
[380175758,1755593442399,-480.0,0.00019726,2]
[380175759,1755593442408,-480.0,0.00019726,2]
[380175760,1755593442418,-422.67044105,0.00019726,2]
[380175761,1755593442427,-417.51,0.00019726,2]
[380175762,1755593442436,-480.0,0.00019726,2]
[380175763,1755593442445,-480.0,0.00019726,2]
[380175764,1755593442455,-1004.1,0.00019726,2]
[380175765,1755593442466,-480.0,0.00019726,2]
[380175766,1755593442477,-480.0,0.00019726,2]
[380175767,1755593442486,-480.0,0.00019726,2]
[380175768,1755593442496,-480.0,0.00019726,2]
[380175769,1755593442505,-480.0,0.00019726,2]
[380175770,1755593442516,-514.28,0.00019726,2]
[380175771,1755593442525,-151.0,0.00019726,2]
[380175772,1755593442536,-480.0,0.00019726,2]
[380175773,1755593442547,-480.0,0.00019726,2]
[380175774,1755593442556,-849.3,0.00019726,2]
[380175775,1755593442566,-151.0,0.00019726,2]
[380175776,1755593442576,-543.12,0.00019726,2]
[380175777,1755593442585,-151.0,0.00019726,2]
[380175778,1755593442594,-440.0,0.00019726,2]
[380175779,1755593442604,-480.0,0.00019726,2]
[380175780,1755593442617,-480.0,0.00019726,2]
[380175781,1755593442628,-480.0,0.00019726,2]
[380175782,1755593442639,-480.0,0.00019726,2]
[380175783,1755593442648,-535.647314,0.00019726,2]
[380175784,1755593442658,-535.647314,0.00019726,2]
[380175786,1755593442875,-151.0,0.00019726,2]
[380175787,1755593442885,-151.0,0.00019726,2]
[380175788,1755593442895,-480.0,0.00019726,2]
[380175789,1755593442904,-151.0,0.00019726,2]
[380175791,1755593442914,-151.0,0.00019726,2]
[380175792,1755593442923,-151.0,0.00019726,2]
[380175793,1755593442933,-151.0,0.00019726,2]
[380175794,1755593442942,-151.0,0.00019726,2]
[380175795,1755593442951,-187.383542,0.00019726,2]
[380175796,1755593442961,-557.31,0.00019726,2]
[380175798,1755593442971,-480.0,0.00019726,2]
[380175800,1755593442981,-696.53,0.00019726,2]
[380175802,1755593442990,-2007.54,0.00019726,2]
[380175804,1755593443001,-3410.87,0.00019726,2]
[380175806,1755593443010,-480.0,0.00019726,2]
[380175808,1755593443019,-480.0,0.00019726,2]
[380175810,1755593443029,-151.0,0.00019726,2]
[380175811,1755593443037,-151.0,0.00019726,2]
[380175813,1755593443047,-480.0,0.00019726,2]
[380175814,1755593443056,-194.443207,0.00019726,2]
[380175815,1755593443065,-151.0,0.00019726,2]
[380175817,1755593443075,-151.0,0.00019726,2]
[380175825,1755593443163,-151.0,0.00019726,2]
[380175826,1755593443174,-194.443207,0.00019726,2]
[380175827,1755593443184,-151.0,0.00019726,2]
[380175828,1755593443193,-480.0,0.00019726,2]
[380175829,1755593443203,-151.0,0.00019726,2]
[380175830,1755593443213,-480.0,0.00019726,2]
[380175831,1755593443223,-1270.09,0.00019726,2]
[380175832,1755593443232,-480.0,0.00019726,2]
[380175833,1755593443241,-480.0,0.00019726,2]
[380175834,1755593443251,-151.0,0.00019726,2]
[380175835,1755593443261,-822.37,0.00019726,2]
[380175836,1755593443270,-151.0,0.00019726,2]
[380175837,1755593443280,-151.0,0.00019726,2]
[380175838,1755593443290,-151.0,0.00019726,2]
[380175839,1755593443301,-1629.67,0.00019726,2]
[380175840,1755593443312,-151.0,0.00019726,2]
[380175841,1755593443322,-440.0,0.00019726,2]
[380175842,1755593443332,-480.0,0.00019726,2]
[380175843,1755593443342,-480.0,0.00019726,2]
[380175844,1755593443352,-1246.1,0.00019726,2]
[380175845,1755593443362,-480.0,0.00019726,2]
[380175846,1755593443371,-151.0,0.00019726,2]
[380175847,1755593443382,-813.04,0.00019726,2]
[380175848,1755593443392,-480.0,0.00019726,2]
[380175849,1755593443401,-480.0,0.00019726,2]
[380175850,1755593443411,-647.44,0.00019726,2]
[380175851,1755593443420,-462.55205322,0.00019726,2]
[380175852,1755593443429,-480.0,0.00019726,2]
[380175853,1755593443439,-480.0,0.00019726,2]
[380175854,1755593443448,-480.0,0.00019726,2]
[380175855,1755593443457,-480.0,0.00019726,2]
[380175856,1755593443466,-480.0,0.00019726,2]
[380175857,1755593443476,-576.17,0.00019726,2]
[380175858,1755593443485,-1057.36,0.00019726,2]
[380175859,1755593443494,-554.41439668,0.00019726,2]
[380175860,1755593443504,-480.0,0.00019726,2]
[380175861,1755593443513,-480.0,0.00019726,2]
[380175862,1755593443523,-526.96,0.00019726,2]
[380175863,1755593443532,-480.0,0.00019726,2]
[380175864,1755593443546,-480.0,0.00019726,2]
[380175865,1755593443555,-480.0,0.00019726,2]
[380175867,1755593443564,-480.0,0.00019726,2]
[380175869,1755593443575,-360.0,0.00019726,2]
[380175871,1755593443584,-480.0,0.00019726,2]
[380175873,1755593443594,-490.23705647,0.00019726,2]
[380175875,1755593443603,-151.0,0.00019726,2]
[380175877,1755593443613,-480.0,0.00019726,2]
[380175879,1755593443623,-480.0,0.00019726,2]
[380175881,1755593443634,-786.22,0.00019726,2]
[380175883,1755593443643,-151.0,0.00019726,2]
[380175884,1755593443653,-151.0,0.00019726,2]
[380175885,1755593443662,-480.0,0.00019726,2]
[380175886,1755593443671,-480.0,0.00019726,2]
[380175887,1755593443680,-511.37,0.00019726,2]
[380175888,1755593443690,-500.0,0.00019726,2]
[380175889,1755593443699,-480.0,0.00019726,2]
[380175890,1755593443709,-480.0,0.00019726,2]
[380175891,1755593443718,-480.0,0.00019726,2]
[380175892,1755593443727,-480.0,0.00019726,2]
[380175893,1755593443737,-480.0,0.00019726,2]
[380175894,1755593443747,-786.05,0.00019726,2]
[380175895,1755593443756,-480.0,0.00019726,2]
[380175896,1755593443765,-2051.21,0.00019726,2]
[380175897,1755593443775,-6924.41,0.00019726,2]
[380175898,1755593443784,-6698.69,0.00019726,2]
[380175899,1755593443794,-2277.25,0.00019726,2]
[380175900,1755593443803,-480.0,0.00019726,2]
[380175901,1755593443812,-480.0,0.00019726,2]
[380175902,1755593443824,-480.0,0.00019726,2]
[380175903,1755593443834,-2311.94,0.00019726,2]
[380175904,1755593443843,-480.0,0.00019726,2]
[380175905,1755593443852,-482.71,0.00019726,2]
[380175906,1755593443862,-368.19140245,0.00019726,2]
[380175907,1755593443874,-480.0,0.00019726,2]
[380175908,1755593443883,-480.0,0.00019726,2]
[380175909,1755593443893,-1000.0,0.00019726,2]
[380175910,1755593443902,-938.96,0.00019726,2]
[380175911,1755593443911,-1000.0,0.00019726,2]
[380175912,1755593443920,-1000.0,0.00019726,2]
[380175913,1755593443930,-1000.0,0.00019726,2]
[380175914,1755593443940,-1000.0,0.00019726,2]
[380175915,1755593443951,-480.0,0.00019726,2]
[380175916,1755593443960,-1000.0,0.00019726,2]
[380175917,1755593443969,-1000.0,0.00019726,2]
[380175918,1755593443979,-1000.0,0.00019726,2]
[380175919,1755593443988,-1000.0,0.00019726,2]
[380175920,1755593443997,-1000.0,0.00019726,2]
[380175921,1755593444006,-1000.0,0.00019726,2]
[380175922,1755593444016,-1000.0,0.00019726,2]
[380175923,1755593444025,-1000.0,0.00019726,2]
[380175924,1755593444034,-1000.0,0.00019726,2]
[380175925,1755593444043,-480.0,0.00019726,2]
[380175926,1755593444052,-1000.0,0.00019726,2]
[380175927,1755593444061,-1000.0,0.00019726,2]
[380175928,1755593444072,-1000.0,0.00019726,2]
[380175929,1755593444081,-480.0,0.00019726,2]
[380175930,1755593444091,-1000.0,0.00019726,2]
[380175931,1755593444100,-1000.0,0.00019726,2]
[380175932,1755593444110,-1000.0,0.00019726,2]
[380175933,1755593444119,-1000.0,0.00019726,2]
[380175934,1755593444129,-1000.0,0.00019726,2]
[380175935,1755593444138,-1000.0,0.00019726,2]